bitfinex-derivatives/quotes_ETHF0:USTF0_20250518
["timestamp","ask_amount","ask_price","bid_price","bid_amount"]
[1747543847861,3.8623,2485.8,2485.7,2.0044]
[1747543848061,5.885,2485.8,2485.7,2.0044]
[1747543848461,5.0807,2485.8,2485.6,3.2078]
[1747543848662,1.3083,2485.7,2485.6,3.2078]
[1747543848865,1.3083,2485.7,2485.6,4.5751]
[1747543849065,4.3663,2485.7,2485.6,4.5751]
[1747543849568,4.3663,2485.7,2485.6,1.3673]
[1747543850065,4.3663,2485.7,2485.6,2.17167]
[1747543850265,5.17063,2485.7,2485.6,1.3673]
[1747543850466,4.3663,2485.7,2485.6,1.3673]
[1747543850767,5.17065,2485.7,2485.3,3.2078]
[1747543850954,1.3083,2485.6,2485.4,0.30875821]
[1747543851154,1.3083,2485.6,2485.2,0.6905]
[1747543851368,3.2078,2485.4,2485.2,0.80448]
[1747543851563,1.3739,2485.3,2485.2,0.80448]
[1747543851759,2.0642,2485.3,2485.2,0.80448]
[1747543852059,15.877,2485.5,2485.3,0.80446]
[1747543852261,17.9412,2485.6,2485.4,1.2745]
[1747543852968,18.74558,2485.6,2485.4,1.2745]
[1747543853168,2.1783,2485.5,2485.4,1.2745]
[1747543853569,1.3739,2485.5,2485.4,1.2745]
[1747543854364,4.4319,2485.5,2485.4,1.2745]
[1747543854667,5.2363,2485.5,2485.4,1.2745]
[1747543855370,4.4319,2485.5,2485.4,1.2745]
[1747543855562,5.2363,2485.5,2485.4,1.2745]
[1747543855867,3.8624,2485.5,2485.4,1.2745]
[1747543856070,3.058,2485.5,2485.4,2.07893]
[1747543856467,3.058,2485.5,2485.4,2.38765695]
[1747543856666,3.058,2485.5,2485.4,2.07893]
[1747543857368,3.058,2485.5,2485.4,2.38771587]
[1747543857670,3.058,2485.5,2485.4,2.38772396]
[1747543858065,3.058,2485.5,2485.4,7.38772396]
[1747543858465,3.058,2485.5,2485.4,2.38772396]
[1747543859773,3.058,2485.5,2485.4,3.56115177]
[1747543861675,1.69792913,2485.5,2485.4,8.56115177]
[1747543862173,0.09218003,2485.8,2485.7,0.80433]
[1747543862369,0.09218003,2485.8,2485.7,4.32109775]
[1747543862767,0.09218003,2485.8,2485.7,13.61812863]
[1747543863173,0.09218003,2485.8,2485.7,14.90032863]
[1747543864281,0.09218003,2485.8,2485.7,17.26854266]
[1747543864782,1.3138,2486.5,2486.1,0.8042]
[1747543865080,1.3138,2486.5,2486.2,1.45946]
[1747543865283,1.3138,2486.5,2486.3,2.05463]
[1747543865480,1.3138,2486.5,2486.4,0.80411]
[1747543865673,1.3138,2486.5,2486.4,1.2505]
[1747543866182,4.3718,2486.5,2486.4,1.2505]
[1747543867177,4.3718,2486.5,2486.4,2.05461]
[1747543867481,4.3718,2486.5,2486.4,1.2505]
[1747543868077,4.3718,2486.5,2486.4,0.80411]
[1747543868380,4.3718,2486.5,2486.3,2.09192]
[1747543868687,1.2837,2486.4,2486.3,0.80412]
[1747543869183,4.3417,2486.4,2486.3,0.80412]
[1747543871184,4.3417,2486.4,2486.2,2.82496]
[1747543871386,1.3081,2486.3,2486.2,2.82496]
[1747543872181,4.3661,2486.3,2486.2,2.82496]
[1747543873287,4.3661,2486.3,2486.2,2.82497]
[1747543873878,4.3661,2486.3,2486.1,0.80418]
[1747543874080,1.9996,2486.2,2486.1,0.80418]
[1747543874489,1.9996,2486.2,2486.1,2.12398]
[1747543875293,5.0576,2486.2,2486.1,2.12398]
[1747543876093,3.058,2486.2,2486.1,2.43226571]
[1747543876991,3.058,2486.2,2486.1,2.43221894]
[1747543878794,3.058,2486.2,2486.1,2.43216289]
[1747543880094,3.15018003,2486.2,2486.1,2.43216289]
[1747543880589,3.15018003,2486.2,2486.1,2.12398]
[1747543880893,3.15018003,2486.2,2486.1,2.43215545]
[1747543886187,3.15018003,2486.2,2486.1,2.43277386]
[1747543886387,3.15018003,2486.2,2486.1,3.60207407]
[1747543889795,3.15018003,2486.2,2486.1,2.28288139]
[1747543891503,3.15018003,2486.2,2486.1,3.62218139]
[1747543892401,4.43148003,2486.2,2486.1,3.62218139]
[1747543893398,4.43148003,2486.2,2486.1,3.31278021]
[1747543893599,4.43148003,2486.2,2486.1,3.6223949]
[1747543894801,4.43148003,2486.2,2486.1,1.4789149]
[1747543895002,5.87045003,2486.2,2486.1,1.4789149]
[1747543895405,5.87045003,2486.2,2486.1,1.16930021]
[1747543896606,5.87045003,2486.2,2486.0,4.40277256]
[1747543896809,1.3119,2486.1,2486.0,4.40277256]
[1747543897108,4.3699,2486.1,2486.0,4.40277256]
[1747543897403,4.3699,2486.1,2486.0,5.20698256]
[1747543898307,4.3699,2486.1,2486.0,4.01201]
[1747543898816,4.3699,2486.1,2486.0,0.80421]
[1747543899107,5.1741,2486.1,2485.8,4.01209]
[1747543899308,1.3545,2486.0,2485.8,4.01209]
[1747543899707,0.6724,2485.9,2485.8,4.01209]
[1747543899909,0.6724,2485.9,2485.8,4.32137784]
[1747543900202,3.7304,2485.9,2485.8,4.32137784]
[1747543900809,3.7304,2485.9,2485.8,4.32134498]
[1747543901011,5.1011,2485.9,2485.8,4.32134498]
[1747543901309,5.1011,2485.9,2485.8,4.01209]
[1747543901607,5.90537,2485.9,2485.8,4.0121]
[1747543902511,5.90537,2485.9,2485.8,3.2078]
[1747543903611,5.90537,2485.9,2485.7,2.07383]
[1747543903812,1.2513,2485.8,2485.7,2.07383]
[1747543904014,1.2513,2485.8,2485.7,2.38295963]
[1747543904208,4.3093,2485.8,2485.7,2.38295963]
[1747543904400,4.3093,2485.8,2485.7,2.07383]
[1747543904606,4.3093,2485.8,2485.7,2.38291624]
[1747543905114,7.5171,2485.8,2485.4,0.6554]
[1747543905314,2.72365,2485.7,2485.5,1.11352641]
[1747543905609,6.2658,2485.8,2485.6,0.30905097]
[1747543905912,6.2658,2485.8,2485.7,2.9084246]
[1747543906316,7.0701,2485.8,2485.7,1.2942]
[1747543906513,8.3815,2485.8,2485.6,0.80435]
[1747543906715,1.3114,2485.7,2485.6,0.80435]
[1747543906916,1.3114,2485.7,2485.6,0.30911465]
[1747543907119,4.3694,2485.7,2485.6,0.30911465]
[1747543907308,5.17373,2485.7,2485.6,1.56251465]
[1747543907617,5.17373,2485.7,2485.4,2.16073]
[1747543907817,4.3694,2485.7,2485.5,1.5625693]
[1747543908016,4.3694,2485.7,2485.6,1.2534]
[1747543908720,3.058,2485.7,2485.6,1.2534]
[1747543910720,3.86235,2485.7,2485.4,1.3563]
[1747543910915,1.9045,2485.6,2485.4,1.3563]
[1747543911119,4.9625,2485.6,2485.4,2.6619]
[1747543911322,1.2701,2485.5,2485.4,2.6619]
[1747543911618,1.2701,2485.5,2485.4,3.77545164]
[1747543911920,1.2701,2485.5,2485.4,3.77546066]
[1747543912121,4.3281,2485.5,2485.4,3.77546066]
[1747543912623,3.058,2485.5,2485.4,3.77546066]
[1747543913619,3.058,2485.5,2485.4,3.46633]
[1747543913818,3.058,2485.5,2485.4,3.77545506]
[1747543916525,3.058,2485.5,2485.4,6.98325506]
[1747543917125,0.09218003,2485.8,2485.4,6.98325506]
[1747543917126,0.09218003,2485.8,2485.7,0.80433]
[1747543918219,3.15018003,2485.8,2485.7,0.80433]
[1747543918418,3.15018003,2485.8,2485.7,1.11357689]
[1747543918619,3.15018003,2485.8,2485.7,0.80433]
[1747543919628,3.15018003,2485.8,2485.7,1.11350953]
[1747543920025,3.15018003,2485.8,2485.7,0.80433]
[1747543920526,3.15018003,2485.8,2485.7,1.11348132]
[1747543920724,4.42598003,2485.8,2485.7,1.11348132]
[1747543920914,4.42598003,2485.8,2485.7,1.11347726]
[1747543921528,4.42598003,2485.8,2485.7,4.32127726]
[1747543921926,3.15018003,2485.8,2485.7,4.32127726]
[1747543922326,3.15018003,2485.8,2485.7,4.3213286]
[1747543923919,3.15018003,2485.8,2485.7,5.48957489]
[1747543924128,3.15018003,2485.8,2485.7,5.48978132]
[1747543925928,3.15018003,2485.8,2485.7,5.48995947]
[1747543927827,3.15018003,2485.8,2485.7,5.48994617]
[1747543929539,3.15018003,2485.8,2485.7,6.13594617]
[1747543929837,3.15018003,2485.8,2485.7,6.13595148]
[1747543931252,3.78098003,2485.8,2485.7,6.13595148]
[1747543931444,3.78098003,2485.8,2485.7,6.13597895]
[1747543933227,3.78098003,2485.8,2485.7,5.82637629]
[1747543933526,3.78098003,2485.8,2485.7,6.13599094]
[1747543933934,3.78098003,2485.8,2485.7,5.48999094]
[1747543934136,3.78098003,2485.8,2485.7,5.48998235]
[1747543934429,5.08608003,2485.8,2485.7,5.48998235]
[1747543934734,30.48078003,2485.8,2485.7,1.16824629]
[1747543935128,30.48078003,2485.8,2485.5,1.19497256]
[1747543935129,0.80437,2485.6,2485.3,0.80444]
[1747543935332,0.6462,2485.5,2485.4,0.3097509]
[1747543935531,1.9513,2485.5,2485.4,0.3097509]
[1747543936229,5.0093,2485.5,2485.4,0.3097509]
[1747543936935,5.0093,2485.5,2485.4,0.30962598]
[1747543937126,5.8137,2485.5,2485.4,0.30962598]
[1747543937324,5.0093,2485.5,2485.4,0.30962598]
[1747543937535,5.0093,2485.5,2485.3,0.80443]
[1747543938238,5.81371,2485.5,2485.3,0.80443]
[1747543938535,1.2658,2485.4,2485.3,0.80443]
[1747543938732,2.07023,2485.4,2485.3,0.30951204]
[1747543938939,0.80446,2485.3,2485.1,3.2078]
[1747543939236,2.07026,2485.3,2485.1,3.2078]
[1747543939444,0.6401,2485.2,2485.1,3.2078]
[1747543939633,1.9931,2485.2,2485.1,4.01233]
[1747543940138,5.0511,2485.2,2485.1,4.01233]
[1747543941238,5.0511,2485.2,2485.1,3.2078]
[1747543942337,5.8556,2485.2,2485.1,3.2078]
[1747543943333,5.0511,2485.2,2485.1,4.01233]
[1747543943641,5.8556,2485.2,2485.1,4.01233]
[1747543944840,5.8556,2485.2,2485.1,0.80453]
[1747543945241,5.8556,2485.2,2485.0,2.09754]
[1747543945536,5.0511,2485.2,2484.9,0.80456]
[1747543945743,0.80458,2485.0,2484.9,1.3456]
[1747543945939,2.13734,2485.1,2484.9,2.15018]
[1747543946140,3.86256,2485.0,2484.9,2.15018]
[1747543946345,3.058,2485.0,2484.9,2.15018]
[1747543947242,3.86256,2485.0,2484.9,1.3456]
[1747543947444,5.19536,2485.0,2484.9,1.3456]
[1747543950045,4.3908,2485.0,2484.9,2.15019]
[1747543950348,4.3908,2485.0,2484.9,1.3456]
[1747543950743,4.3908,2485.0,2484.8,2.13341]
[1747543950940,4.3908,2485.0,2484.9,1.3268]
[1747543951446,3.058,2485.0,2484.9,2.13139]
[1747543951744,3.058,2485.0,2484.9,2.43981347]
[1747543952146,2.14975,2485.4,2485.1,0.80451]
[1747543952347,1.3453,2485.4,2485.2,1.46979]
[1747543952543,2.14973,2485.4,2485.3,0.6248]
[1747543952743,1.3453,2485.4,2485.3,1.9252]
[1747543953243,4.4033,2485.4,2485.3,1.9252]
[1747543953546,5.20773,2485.4,2485.3,1.9252]
[1747543954436,3.058,2485.4,2485.3,2.72966]
[1747543955747,3.86243,2485.4,2485.3,1.9252]
[1747543955940,3.058,2485.4,2485.3,1.9252]
[1747543956139,3.86243,2485.4,2485.3,1.9252]
[1747543956438,3.058,2485.4,2485.3,1.9252]
[1747543956638,3.058,2485.4,2485.3,2.72966]
[1747543958046,3.058,2485.4,2485.3,3.03841999]
[1747543959051,3.058,2485.4,2485.3,3.03848836]
[1747543960956,3.058,2485.4,2485.3,3.03862265]
[1747543965153,3.058,2485.4,2485.3,4.20606801]
[1747543966358,3.058,2485.4,2485.3,2.72966]
[1747543966556,3.058,2485.4,2485.3,3.03899831]
[1747543968357,3.058,2485.4,2485.3,3.03917166]
[1747543968558,3.058,2485.4,2485.3,2.23471166]
[1747543969260,4.4218,2485.4,2485.3,2.23471449]
[1747543969859,4.4218,2485.4,2485.3,3.03917449]
[1747543970162,4.51398003,2485.4,2485.3,3.03917449]
[1747543970857,3.15018003,2485.4,2485.3,3.03917449]
[1747543971163,0.09218003,2485.4,2485.3,4.20749776]
[1747543972158,3.15018003,2485.4,2485.3,4.20749776]
[1747543973764,3.15018003,2485.4,2485.3,4.20743789]
[1747543973958,3.15018003,2485.4,2485.3,4.20744501]
[1747543974865,3.15018003,2485.4,2485.3,3.03912174]
[1747543977255,4.43308003,2485.4,2485.3,3.03912174]
[1747543979266,4.43308003,2485.4,2485.3,0.30946174]
[1747543979759,5.09398003,2485.4,2485.3,0.30946174]
[1747543979957,5.89841003,2485.4,2485.1,3.2078]
[1747543980266,1.345,2485.3,2485.2,0.30988823]
[1747543980567,1.345,2485.3,2485.2,1.11437823]
[1747543980862,1.345,2485.3,2485.2,1.11446036]
[1747543981063,4.403,2485.3,2485.2,1.11446036]
[1747543982367,4.403,2485.3,2485.2,1.11458309]
[1747543982863,3.058,2485.3,2485.2,1.11458309]
[1747543983065,3.058,2485.3,2485.2,2.42418309]
[1747543983264,0.09218003,2485.4,2485.3,0.80446]
[1747543983462,0.09218003,2485.4,2485.3,3.77745309]
[1747543984268,0.09218003,2485.4,2485.3,4.94674116]
[1747543984468,3.058,2485.5,2485.4,0.80443]
[1747543984668,3.058,2485.5,2485.4,2.42401534]
[1747543986066,3.058,2485.5,2485.4,2.42399709]
[1747543986270,3.058,2485.5,2485.4,5.63179709]
[1747543986770,3.058,2485.5,2485.4,2.42399709]
[1747543988571,3.058,2485.5,2485.4,2.4241646]
[1747543988773,3.058,2485.5,2485.4,3.59356042]
[1747543993279,3.058,2485.5,2485.4,1.47953042]
[1747543993580,3.8624,2485.5,2485.4,1.47953042]
[1747543993979,3.058,2485.5,2485.4,1.47953042]
[1747543994179,3.058,2485.5,2485.4,2.28396042]
[1747543994481,4.3829,2485.5,2485.4,1.1145646]
[1747543994679,5.6466,2485.5,2485.4,1.1145646]
[1747543995178,5.6466,2485.5,2485.4,0.80443]
[1747543995481,5.6466,2485.5,2485.4,1.11430929]
[1747543996689,5.6466,2485.5,2485.4,0.30987929]
[1747543997187,5.6466,2485.5,2485.4,0.3098897]
[1747543998294,6.451,2485.5,2485.4,0.3098897]
[1747543998991,6.451,2485.5,2485.4,0.30978972]
[1747543999695,6.54318003,2485.5,2485.4,0.30978972]
[1747544000691,0.80448,2485.3,2485.1,6.54407913]
[1747544000994,1.47039,2485.2,2485.1,4.40876913]
[1747544001194,1.47039,2485.2,2485.1,4.71863056]
[1747544001791,2.83149,2485.2,2485.1,4.71863056]
[1747544002098,5.88949,2485.2,2485.1,3.51766143]
[1747544002500,5.88949,2485.2,2485.1,0.30986143]
[1747544002700,0.80456,2485.1,2484.9,2.06218]
[1747544002998,2.82806,2485.1,2485.0,0.30973091]
[1747544003199,5.88606,2485.1,2485.0,0.30973091]
[1747544003604,5.88606,2485.1,2485.0,0.80456]
[1747544003900,5.88606,2485.1,2484.9,2.06217]
[1747544004100,2.13916,2485.0,2484.9,1.2576]
[1747544004298,1.3346,2485.0,2484.9,2.3719112]
[1747544004494,1.3346,2485.0,2484.9,2.37190546]
[1747544005096,1.3346,2485.0,2484.9,1.56731546]
[1747544005301,4.3926,2485.0,2484.9,2.37190546]
[1747544006496,4.3926,2485.0,2484.9,1.56731546]
[1747544006699,5.19716,2485.0,2484.9,1.56731546]
[1747544007404,5.19716,2485.0,2484.9,1.2576]
[1747544007902,0.80459,2484.9,2484.8,3.8859]
[1747544008101,2.80499,2484.9,2484.8,3.51742944]
[1747544008691,2.0004,2484.9,2484.8,3.51742944]
[1747544008897,2.0004,2484.9,2484.8,4.84862944]
[1747544009206,5.0584,2484.9,2484.8,4.84862944]
[1747544009908,3.058,2484.9,2484.8,5.65314488]
[1747544010800,3.058,2484.9,2484.8,4.84852488]
[1747544011607,3.86259,2484.9,2484.8,4.84852488]
[1747544011903,3.86259,2484.9,2484.8,4.84848805]
[1747544012503,5.19559,2484.9,2484.8,4.539]
[1747544013205,4.391,2484.9,2484.8,4.539]
[1747544013609,4.391,2484.9,2484.8,5.34362]
[1747544015108,3.058,2484.9,2484.8,5.34362]
[1747544015308,3.058,2484.9,2484.8,5.65294597]
[1747544015509,3.058,2484.9,2484.8,5.6529541]
[1747544015712,3.15018003,2484.9,2484.8,5.6529541]
[1747544016808,3.15018003,2484.9,2484.8,4.8483341]
[1747544017407,3.15018003,2484.9,2484.8,4.84839784]
[1747544017613,3.15018003,2484.9,2484.8,4.8484142]
[1747544018110,3.15018003,2484.9,2484.8,4.84842481]
[1747544019110,3.15018003,2484.9,2484.8,5.65308625]
[1747544019811,3.15018003,2484.9,2484.8,2.44528625]
[1747544021015,3.15018003,2484.9,2484.8,2.44536782]
[1747544022720,3.15018003,2484.9,2484.8,2.44545778]
[1747544023314,3.95477003,2484.9,2484.8,1.64083778]
[1747544023611,5.25927003,2484.9,2484.8,1.64083778]
[1747544024617,5.25927003,2484.9,2484.8,1.6409263]
[1747544024817,5.25927003,2484.9,2484.8,1.3312]
[1747544025321,0.80462,2484.8,2484.7,0.6522]
[1747544025520,2.10502,2484.8,2484.7,0.6522]
[1747544026319,5.16302,2484.8,2484.7,0.6522]
[1747544027117,0.80465,2484.7,2484.6,2.78119]
[1747544027317,0.80465,2484.7,2484.6,3.0908563]
[1747544027318,1.9472,2484.7,2484.6,3.0908563]
[1747544028218,5.0052,2484.7,2484.6,3.09092443]
[1747544028414,5.80985,2484.7,2484.6,3.09092443]
[1747544029222,5.0052,2484.7,2484.6,3.09092443]
[1747544030123,5.80985,2484.7,2484.6,2.28634799]
[1747544030320,5.0052,2484.7,2484.6,2.28634799]
[1747544031623,4.3584,2484.7,2484.6,2.28634799]
[1747544031925,4.3584,2484.7,2484.6,2.28640508]
[1747544032519,5.16305,2484.7,2484.6,2.28640508]
[1747544033327,4.3584,2484.7,2484.6,2.28640508]
[1747544033517,3.058,2484.7,2484.6,2.28640508]
[1747544033717,3.058,2484.7,2484.6,2.28640003]
[1747544034122,3.86265,2484.7,2484.6,2.28640003]
[1747544035128,3.058,2484.7,2484.6,3.09109003]
[1747544035927,3.058,2484.7,2484.6,4.25753278]
[1747544036127,3.058,2484.7,2484.6,4.25752934]
[1747544037632,3.058,2484.7,2484.6,4.25755474]
[1747544042422,3.058,2484.7,2484.6,4.25763849]
[1747544044330,3.058,2484.7,2484.6,4.25767673]
[1747544046135,3.15018003,2484.7,2484.6,4.25770132]
[1747544047930,3.15018003,2484.7,2484.6,4.25774388]
[1747544050038,3.15018003,2484.7,2484.6,4.25780362]
[1747544051642,3.15018003,2484.7,2484.6,4.25785282]
[1747544053351,3.15018003,2484.7,2484.6,3.45316282]
[1747544054155,5.19168003,2484.7,2484.6,4.25785282]
[1747544054543,3.15018003,2484.7,2484.6,4.25785282]
[1747544055456,3.15018003,2484.7,2484.6,4.25796798]
[1747544055652,3.15018003,2484.7,2484.6,4.25797462]
[1747544058057,4.44688003,2484.7,2484.6,4.25797462]
[1747544058755,4.44688003,2484.7,2484.6,1.47678462]
[1747544059158,4.44688003,2484.7,2484.6,2.28147462]
[1747544060659,3.15018003,2484.7,2484.6,2.28147462]
[1747544060860,3.15018003,2484.7,2484.6,2.2815811]
[1747544061560,3.15018003,2484.7,2484.6,1.4768911]
[1747544062062,3.83718003,2484.7,2484.6,2.2815811]
[1747544062359,5.17518003,2484.7,2484.6,2.2815811]
[1747544062555,5.17518003,2484.7,2484.6,2.28165067]
[1747544063161,5.17518003,2484.7,2484.6,2.28812449]
[1747544064158,5.17518003,2484.7,2484.6,2.28812662]
[1747544064356,5.083,2484.7,2484.6,1.97763753]
[1747544064561,5.083,2484.7,2484.6,1.48343747]
[1747544065363,5.17518003,2484.7,2484.6,1.48343747]
[1747544065555,5.17518003,2484.7,2484.6,2.28812747]
[1747544066562,5.88766,2484.7,2484.6,1.48343747]
[1747544067563,5.97984003,2484.7,2484.6,1.48343747]
[1747544068163,5.97984003,2484.7,2484.6,0.31696376]
[1747544068759,5.17518003,2484.7,2484.6,0.31696376]
[1747544068958,5.17518003,2484.7,2484.6,1.12165376]
[1747544069658,5.083,2484.7,2484.6,1.12165376]
[1747544069862,5.083,2484.7,2484.6,1.12159096]
[1747544070564,5.17518003,2484.7,2484.6,1.12159096]
[1747544070760,3.15018003,2484.7,2484.6,4.32939096]
[1747544071063,3.15018003,2484.7,2484.6,6.14743357]
[1747544071362,0.09218003,2484.7,2484.6,6.14743357]
[1747544074166,0.09218003,2484.7,2484.6,2.93963357]
[1747544074364,0.09218003,2484.7,2484.6,13.94743357]
[1747544074863,0.09218003,2484.7,2484.6,15.27233357]
[1747544075165,3.15018003,2484.7,2484.6,15.27233357]
[1747544075365,3.15018003,2484.7,2484.6,15.27214902]
[1747544075563,3.15018003,2484.7,2484.6,14.46745902]
[1747544076262,0.09218003,2484.7,2484.6,14.46745902]
[1747544077071,0.09218003,2484.7,2484.6,15.27214902]
[1747544077276,0.09218003,2484.7,2484.6,15.27212175]
[1747544077964,0.09218003,2484.7,2484.6,6.66743175]
[1747544078167,3.15018003,2484.7,2484.6,6.66743175]
[1747544079162,3.15018003,2484.7,2484.6,6.66750052]
[1747544079364,3.81458003,2484.7,2484.6,6.66750052]
[1747544081372,5.07628003,2484.7,2484.6,6.66750052]
[1747544083373,5.07628003,2484.7,2484.6,4.69440052]
[1747544084474,5.07628003,2484.7,2484.6,4.69441799]
[1747544085574,5.07628003,2484.7,2484.6,1.48661799]
[1747544088178,5.07628003,2484.7,2484.6,1.48666906]
[1747544089976,5.07628003,2484.7,2484.6,2.14996906]
[1747544091373,5.07628003,2484.7,2484.6,1.48666906]
[1747544091764,5.07628003,2484.7,2484.6,1.48670706]
[1747544091969,5.07628003,2484.7,2484.6,1.48670793]
[1747544092577,5.88093003,2484.7,2484.6,1.48670793]
[1747544093676,5.07628003,2484.7,2484.6,1.48671294]
[1747544094475,5.07628003,2484.7,2484.6,1.17631643]
[1747544094783,4.9841,2484.7,2484.6,1.4869799]
[1747544094974,3.058,2484.7,2484.6,1.4869799]
[1747544095477,3.058,2484.7,2484.6,2.850166]
[1747544097786,3.15018003,2484.7,2484.6,2.850166]
[1747544102282,3.15018003,2484.7,2484.6,2.85019497]
[1747544102484,4.47098003,2484.7,2484.6,2.85019497]
[1747544104082,5.27563003,2484.7,2484.6,2.85020342]
[1747544106689,5.27563003,2484.7,2484.6,1.48700342]
[1747544107490,5.27563003,2484.7,2484.6,1.48703797]
[1747544109892,5.18345,2484.7,2484.6,1.48703797]
[1747544111595,5.18345,2484.7,2484.6,1.48700079]
[1747544111793,5.18345,2484.7,2484.6,0.31715818]
[1747544112492,5.18345,2484.7,2484.6,0.31713834]
[1747544113191,5.18345,2484.7,2484.6,0.31714502]
[1747544114495,5.18345,2484.7,2484.6,0.00647382]
[1747544124102,5.27563003,2484.7,2484.6,0.00647382]
[1747544125105,5.18345,2484.7,2484.6,0.00647382]
[1747544125706,5.18345,2484.7,2484.6,1.25437382]
[1747544128300,5.27563003,2484.7,2484.6,1.25437382]
[1747544129202,5.18345,2484.7,2484.6,1.25437382]
[1747544129410,3.058,2484.7,2484.6,11.28856497]
[1747544130208,0.09218003,2484.7,2484.6,11.28856497]
[1747544131623,0.09218003,2484.7,2484.6,12.48931226]
[1747544133212,0.09218003,2484.7,2484.6,3.93564226]
[1747544133415,0.09218003,2484.7,2484.6,11.68464226]
[1747544134818,0.09218003,2484.7,2484.6,10.48367313]
[1747544135319,0.09218003,2484.7,2484.6,11.28826997]
[1747544135614,0.09218003,2484.7,2484.6,10.97798634]
[1747544135819,0.09218003,2484.7,2484.6,11.28823649]
[1747544136213,0.09218003,2484.7,2484.6,19.03623649]
[1747544137217,0.09218003,2484.7,2484.6,19.02974343]
[1747544139118,0.09218003,2484.7,2484.6,19.02968741]
[1747544139320,0.09218003,2484.7,2484.6,19.03616123]
[1747544140624,0.09218003,2484.7,2484.6,22.24396123]
[1747544142824,0.09218003,2484.7,2484.6,22.24385107]
[1747544144721,0.09218003,2484.7,2484.6,22.24390701]
[1747544146421,0.09218003,2484.7,2484.6,22.24391135]
[1747544147224,0.09218003,2484.7,2484.6,31.61327368]
[1747544147425,0.09218003,2484.7,2484.6,26.61327368]
[1747544148126,0.09218003,2484.7,2484.6,26.61332352]
[1747544149627,0.09218003,2484.7,2484.6,23.40552352]
[1747544149923,0.09218003,2484.7,2484.6,26.61332352]
[1747544150224,0.09218003,2484.7,2484.6,26.6133477]
[1747544151331,0.09218003,2484.7,2484.6,18.8653477]
[1747544151630,0.09218003,2484.7,2484.6,22.24298537]
[1747544151829,0.09218003,2484.7,2484.6,22.24309474]
[1747544152126,0.09218003,2484.7,2484.6,6.74709474]
[1747544152326,0.09218003,2484.7,2484.6,22.24109474]
[1747544153130,0.09218003,2484.7,2484.6,19.03329474]
[1747544153427,0.09218003,2484.7,2484.6,22.24109474]
[1747544155424,0.09218003,2484.7,2484.6,22.92999474]
[1747544155623,0.09218003,2484.7,2484.6,22.93023313]
[1747544156126,3.15018003,2484.7,2484.6,22.93023313]
[1747544157331,0.09218003,2484.7,2484.6,22.61968634]
[1747544157533,0.09218003,2484.7,2484.6,22.93038862]
[1747544158132,0.09218003,2484.7,2484.6,22.93039696]
[1747544160138,3.15018003,2484.7,2484.6,22.93039696]
[1747544160529,3.82208003,2484.7,2484.6,22.93039696]
[1747544161235,0.76408003,2484.7,2484.6,22.93039696]
[1747544162326,0.76408003,2484.7,2484.6,22.93076715]
[1747544162634,0.76408003,2484.7,2484.6,19.72296715]
[1747544162836,0.76408003,2484.7,2484.6,22.93076715]
[1747544163036,0.76408003,2484.7,2484.6,22.92976715]
[1747544164133,3.82208003,2484.7,2484.6,22.929765]
[1747544164339,3.82208003,2484.7,2484.6,19.721965]
[1747544164838,3.82208003,2484.7,2484.6,22.929765]
[1747544165138,0.76408003,2484.7,2484.6,22.929765]
[1747544165637,0.09218003,2484.7,2484.6,22.929765]
[1747544166040,0.09218003,2484.7,2484.6,22.92979203]
[1747544167340,0.09218003,2484.7,2484.6,22.92983446]
[1747544167741,0.09218003,2484.7,2484.6,24.53112663]
[1747544169332,0.09218003,2484.7,2484.6,9.03812663]
[1747544169538,0.09218003,2484.7,2484.6,29.12313979]
[1747544170937,0.09218003,2484.7,2484.6,29.92378588]
[1747544173243,0.09218003,2484.7,2484.6,29.92352522]
[1747544173844,0.09218003,2484.7,2484.6,32.52158696]
[1747544174147,3e-08,2484.7,2484.6,32.52158696]
[1747544175046,3e-08,2484.7,2484.6,32.52137152]
[1747544176847,3e-08,2484.7,2484.6,32.5211641]
[1747544180449,3e-08,2484.7,2484.6,32.5209219]
[1747544182449,3e-08,2484.7,2484.6,32.52089944]
[1747544184150,3e-08,2484.7,2484.6,32.52088172]
[1747544184350,3e-08,2484.7,2484.6,27.52088172]
[1747544184554,3e-08,2484.7,2484.6,32.52088172]
[1747544185958,3e-08,2484.7,2484.6,32.52086557]
[1747544186352,3e-08,2484.7,2484.6,24.77586557]
[1747544186552,3e-08,2484.7,2484.6,19.77586557]
[1747544186751,3e-08,2484.7,2484.6,27.51786557]
[1747544189658,3e-08,2484.7,2484.6,27.51790148]
[1747544191463,3e-08,2484.7,2484.6,27.2076995]
[1747544191663,3e-08,2484.7,2484.6,27.51794465]
[1747544194864,3e-08,2484.7,2484.6,24.31014465]
[1747544195165,3e-08,2484.7,2484.6,27.2076995]
[1747544195461,3e-08,2484.7,2484.6,27.51812756]
[1747544195664,3e-08,2484.7,2484.6,27.51112756]
[1747544196251,3e-08,2484.7,2484.6,27.51114323]
[1747544197163,3e-08,2484.7,2484.6,27.51121007]
[1747544197859,3e-08,2484.7,2484.6,12.02921007]
[1747544198056,3e-08,2484.7,2484.6,27.51121007]
[1747544198562,3e-08,2484.7,2484.6,12.02921007]
[1747544199065,3e-08,2484.7,2484.6,27.51121007]
[1747544199762,3e-08,2484.7,2484.6,24.30341007]
[1747544199965,3e-08,2484.7,2484.6,19.77121007]
[1747544200265,3e-08,2484.7,2484.6,27.51121007]
[1747544200660,3e-08,2484.7,2484.6,27.51153668]
[1747544200866,3e-08,2484.7,2484.6,30.71412103]
[1747544202569,3e-08,2484.7,2484.6,30.71431847]
[1747544204063,3e-08,2484.7,2484.6,27.51173412]
[1747544204469,3e-08,2484.7,2484.6,27.51183021]
[1747544206357,3e-08,2484.7,2484.6,27.5118302]
[1747544207066,3e-08,2484.7,2484.6,27.51182859]
[1747544207568,1.36220003,2484.7,2484.6,27.51182859]
[1747544207773,1.36220003,2484.7,2484.6,27.50982859]
[1747544208269,1.36220003,2484.7,2484.6,12.02983037]
[1747544208469,1.36220003,2484.7,2484.6,27.50983037]
[1747544210967,1.36220003,2484.7,2484.6,27.50969321]
[1747544211672,1.36220003,2484.7,2484.6,12.02969321]
[1747544211876,1.36220003,2484.7,2484.6,27.50969862]
[1747544212776,1.36220003,2484.7,2484.6,27.50869862]
[1747544213277,1.36220003,2484.7,2484.6,24.30089862]